bitfinex-derivatives/quotes_ETHF0:USTF0_20251220
["timestamp","ask_amount","ask_price","bid_price","bid_amount"]
[1766270170469,4.3238742,2976.0,2975.5,0.00504363]
[1766270172070,3.36,2976.0,2975.5,0.00504363]
[1766270172569,4.29935759,2976.0,2975.5,0.00504363]
[1766270173572,3.36,2976.0,2975.5,0.00504363]
[1766270173768,4.30867507,2976.0,2975.5,0.00504363]
[1766270173968,3.36,2976.0,2975.5,0.00504363]
[1766270174171,4.30867507,2976.0,2975.5,0.00504363]
[1766270175273,4.29808027,2976.0,2975.5,0.00504363]
[1766270176776,3.36,2976.0,2975.5,0.00504363]
[1766270176972,4.30232148,2976.0,2975.5,0.00504363]
[1766270178176,3.36,2976.0,2975.5,0.00504363]
[1766270178477,4.31989945,2976.0,2975.5,0.00504363]
[1766270179375,4.31989945,2976.0,2975.5,4.363e-05]
[1766270179574,4.33013605,2976.0,2975.4,0.00431293]
[1766270179780,3.36,2976.0,2975.4,0.00431293]
[1766270180679,3.36,2976.0,2975.4,0.00935656]
[1766270180880,4.33013605,2976.0,2975.4,0.00935656]
[1766270182080,4.32816755,2976.0,2975.4,0.00935656]
[1766270182781,3.36,2976.0,2975.4,0.00935656]
[1766270182980,4.32816755,2976.0,2975.4,0.00935656]
[1766270183576,3.36,2976.0,2975.4,0.00935656]
[1766270183778,4.31033605,2976.0,2975.4,0.00935656]
[1766270184081,3.36,2976.0,2975.4,0.00935656]
[1766270185784,4.31629221,2976.0,2975.4,0.00935656]
[1766270187584,3.36,2976.0,2975.4,0.00935656]
[1766270187786,4.30851677,2976.0,2975.4,0.00935656]
[1766270188787,3.36,2976.0,2975.4,0.00935656]
[1766270188985,4.31814494,2976.0,2975.4,0.00935656]
[1766270190185,3.36,2976.0,2975.4,0.00935656]
[1766270190383,4.33126492,2976.0,2975.4,0.00935656]
[1766270191789,3.36,2976.0,2975.4,0.00935656]
[1766270191982,4.33019221,2976.0,2975.4,0.00935656]
[1766270194791,3.36,2976.0,2975.4,0.00935656]
[1766270196289,4.29851732,2976.0,2975.4,0.00935656]
[1766270197796,3.36,2976.0,2975.4,0.00935656]
[1766270198594,4.30652453,2976.0,2975.4,0.00935656]
[1766270199096,3.36,2976.0,2975.4,0.00935656]
[1766270199295,4.27315317,2976.0,2975.4,0.00935656]
[1766270200704,4.29626702,2976.0,2975.4,0.00935656]
[1766270201898,3.36,2976.0,2975.4,0.00935656]
[1766270202097,4.30246516,2976.0,2975.4,0.00935656]
[1766270202606,3.36,2976.0,2975.4,0.00935656]
[1766270251149,3.36,2976.0,2975.3,2.77852378]
[1766270251449,3.36,2976.0,2975.3,1.30732378]
[1766270251649,3.36,2976.0,2975.3,1.30909027]
[1766270251846,3.36,2976.0,2975.3,0.5844]
[1766270252051,3.36,2976.0,2975.4,0.00504363]
[1766270266647,0.91380634,2976.1,2975.4,0.00504363]
[1766270266852,3.361,2976.1,2975.5,2.34298494]
[1766270267053,0.00504363,2976.2,2975.5,2.34298494]
[1766270267254,3.36604363,2976.2,2975.5,3.09676084]
[1766270268355,3.36604363,2976.2,2975.5,2.34298494]
[1766270268552,3.36604363,2976.2,2975.5,3.08444976]
[1766270268753,4.25534336,2976.2,2975.5,3.08444976]
[1766270269361,4.25534336,2976.2,2975.5,0.74146482]
[1766270269558,4.26378549,2976.2,2975.5,0.75347759]
[1766270270064,3.36604363,2976.2,2975.4,2.34762634]
[1766270270664,4.26378549,2976.2,2975.4,3.10110393]
[1766270272665,4.26078087,2976.2,2975.4,3.10620017]
[1766270273566,3.36604363,2976.2,2975.4,2.34762634]
[1766270273769,4.26231138,2976.2,2975.4,3.10411013]
[1766270274061,3.36604363,2976.2,2975.4,2.34762634]
[1766270274267,4.26231138,2976.2,2975.4,3.10411013]
[1766270274961,4.2627336,2976.2,2975.4,3.10641632]
[1766270275661,4.2627336,2976.2,2975.4,0.76383361]
[1766270276069,3.36604363,2976.2,2975.4,0.00504363]
[1766270276368,4.26431428,2976.2,2975.4,0.00504363]
[1766270277869,4.25300024,2976.2,2975.4,0.00504363]
[1766270278872,3.36604363,2976.2,2975.4,0.00504363]
[1766270279078,4.25640119,2976.2,2975.4,0.00504363]
[1766270279877,4.25640119,2976.2,2975.4,2.34762634]
[1766270280081,4.27407567,2976.2,2975.4,2.34762634]
[1766270280469,3.36604363,2976.2,2975.4,0.00384363]
[1766270280678,3.36604363,2976.2,2974.5,4.23067053]
[1766270280679,2.34258271,2975.8,2974.8,3.36]
[1766270280876,2.34258271,2975.4,2973.9,4.80709502]
[1766270281079,3.36,2975.4,2974.3,2.34258271]
[1766270281375,3.36,2975.4,2974.5,2.34258271]
[1766270281579,3.36,2975.4,2974.7,2.34762634]
[1766270281781,3.36,2975.4,2974.7,5.70762634]
[1766270283385,3.361,2975.6,2974.7,5.70762634]
[1766270283584,3.361,2975.6,2974.7,6.44451254]
[1766270283785,3.361,2975.6,2974.7,4.10192983]
[1766270283986,3.361,2975.6,2974.8,5.70358271]
[1766270284484,2.34258271,2975.5,2974.7,4.363e-05]
[1766270284681,3.361,2975.6,2974.7,4.363e-05]
[1766270284881,4.25210576,2975.6,2974.7,4.363e-05]
[1766270285082,3.361,2975.6,2974.7,4.363e-05]
[1766270285278,4.25202557,2975.6,2974.7,4.363e-05]
[1766270285979,4.2470795,2975.6,2974.7,4.363e-05]
[1766270286385,3.361,2975.6,2974.7,4.363e-05]
[1766270286587,4.2470795,2975.6,2974.8,2.34258271]
[1766270286779,4.2470795,2975.6,2975.0,2.34258271]
[1766270286979,4.27656944,2975.6,2975.0,2.34258271]
[1766270288179,4.28218209,2975.6,2975.0,2.34258271]
[1766270288683,4.28218209,2975.6,2974.8,5.70358271]
[1766270290686,4.26464717,2975.6,2974.8,5.70358271]
[1766270291787,4.25340391,2975.6,2974.8,5.70358271]
[1766270291988,3.361,2975.6,2974.8,5.70358271]
[1766270292391,4.25340391,2975.6,2974.8,5.70358271]
[1766270292891,3.361,2975.6,2974.8,5.70358271]
[1766270293083,4.254546,2975.6,2974.8,5.70358271]
[1766270293983,3.361,2975.6,2974.8,5.70358271]
[1766270294180,4.26791161,2975.6,2974.8,5.70358271]
[1766270295386,4.25731505,2975.6,2974.8,5.70358271]
[1766270296892,3.361,2975.6,2974.8,5.70358271]
[1766270297094,4.26611769,2975.6,2974.8,5.70358271]
[1766270298494,4.28284535,2975.6,2974.8,5.70358271]
[1766270299696,4.25639,2975.6,2974.8,5.70358271]
[1766270300795,4.25458184,2975.6,2974.8,5.70358271]
[1766270301097,3.361,2975.6,2975.0,2.34258271]
[1766270305803,3.361,2975.6,2975.0,2.34331522]
[1766270316405,3.361,2975.6,2974.9,0.74498356]
[1766270316614,2.34331522,2975.5,2974.7,4.363e-05]
[1766270316805,4.2362157,2975.6,2974.7,4.363e-05]
[1766270317812,4.24164416,2975.6,2974.7,4.363e-05]
[1766270318201,4.24152909,2975.6,2974.7,4.363e-05]
[1766270319220,3.361,2975.6,2974.7,4.363e-05]
[1766270319406,4.25242338,2975.6,2974.7,4.363e-05]
[1766270320507,4.25707059,2975.6,2974.7,4.363e-05]
[1766270321702,4.23604763,2975.6,2974.7,4.363e-05]
[1766270322615,3.361,2975.6,2974.7,4.363e-05]
[1766270322817,4.23525309,2975.6,2974.7,4.363e-05]
[1766270324015,4.22475626,2975.6,2974.7,4.363e-05]
[1766270326715,4.23179657,2975.6,2974.7,4.363e-05]
[1766270328517,3.361,2975.6,2974.7,4.363e-05]
[1766270328711,4.24464555,2975.6,2974.7,4.363e-05]
[1766270329915,4.25249707,2975.6,2974.7,4.363e-05]
[1766270331019,4.22284713,2975.6,2974.7,4.363e-05]
[1766270333324,4.24986687,2975.6,2974.7,4.363e-05]
[1766270333522,3.361,2975.6,2974.7,4.363e-05]
[1766270333820,4.24986687,2975.6,2974.7,4.363e-05]
[1766270334120,3.361,2975.6,2974.7,4.363e-05]
[1766270334521,4.24986687,2975.6,2974.7,4.363e-05]
[1766270336311,3.361,2975.6,2974.7,4.363e-05]
[1766270336518,4.2344875,2975.6,2974.7,4.363e-05]
[1766270338022,4.22458555,2975.6,2974.7,4.363e-05]
[1766270338928,4.24501409,2975.6,2974.7,4.363e-05]
[1766270339327,3.361,2975.6,2974.7,4.363e-05]
[1766270340824,0.88753844,2975.7,2974.8,2.34392002]
[1766270341028,2.918,2975.5,2974.8,2.34392002]
[1766270341230,2.918,2975.5,2974.7,4.363e-05]
[1766270343130,2.918,2975.5,2974.8,2.34392002]
[1766270355830,2.918,2975.5,2974.8,5.70492002]
[1766270378348,2.918,2975.5,2974.9,2.34329332]
[1766270383360,2.918,2975.5,2975.1,2.34329116]
[1766270393860,2.918,2975.5,2974.8,3.361]
[1766270394068,3.361,2975.5,2975.3,2.34329116]
[1766270394268,6.279,2975.6,2975.3,2.34329116]
[1766270400280,6.279,2975.6,2975.3,2.27039116]
[1766270400483,6.279,2975.6,2975.3,2.25659116]
[1766270404778,6.279,2975.6,2975.1,2.34329116]
[1766270413583,6.279,2975.6,2975.1,2.34322534]
[1766270442914,6.279,2975.6,2974.9,5.70422534]
[1766270443218,6.279,2975.6,2975.1,2.34322534]
[1766270443417,6.279,2975.6,2974.9,5.70421313]
[1766270448524,6.279,2975.6,2975.2,2.34321313]
[1766270451819,0.97876302,2975.7,2975.2,2.34321313]
[1766270452119,1.14859066,2975.7,2975.3,2.34281745]
[1766270452319,4.50959066,2975.8,2975.3,2.34281745]
[1766270453331,4.51607233,2975.8,2975.3,2.34281745]
[1766270453935,4.51607233,2975.8,2975.2,2.34281745]
[1766270455024,3.361,2975.8,2975.2,5.70381745]
[1766270455229,4.32942131,2975.8,2975.2,5.70381745]
[1766270456736,4.33375325,2975.8,2975.2,5.70381745]
[1766270457539,3.361,2975.8,2975.2,5.70381745]
[1766270457838,4.33375325,2975.8,2975.2,5.70381745]
[1766270458338,3.361,2975.8,2975.2,5.70381745]
[1766270458541,4.30007042,2975.8,2975.2,5.70381745]
[1766270458942,4.31258002,2975.8,2975.2,5.70381745]
[1766270459738,3.361,2975.8,2975.2,5.70381745]
[1766270460944,4.31258002,2975.8,2975.2,5.70381745]
[1766270462042,4.33841028,2975.8,2975.2,5.70381745]
[1766270462744,3.361,2975.8,2975.2,5.70381745]
[1766270462943,4.35800963,2975.8,2975.2,5.70381745]
[1766270463342,3.361,2975.8,2975.2,5.70381745]
[1766270465745,4.35424766,2975.8,2975.2,5.70381745]
[1766270466946,3.361,2975.8,2975.2,5.70381745]
[1766270467147,4.34770961,2975.8,2975.2,5.70381745]
[1766270468559,3.361,2975.8,2975.2,5.70381745]
[1766270468846,4.34832226,2975.8,2975.2,5.70381745]
[1766270469243,3.361,2975.8,2975.2,5.70381745]
[1766270471453,4.34832226,2975.8,2975.2,5.70381745]
[1766270471952,4.36919454,2975.8,2975.2,5.70381745]
[1766270472653,4.34559727,2975.8,2975.2,5.70381745]
[1766270472953,3.361,2975.8,2975.2,5.70381745]
[1766270473255,4.34559727,2975.8,2975.2,5.70381745]
[1766270474152,4.35592989,2975.8,2975.2,5.70381745]
[1766270476845,4.3406825,2975.8,2975.2,5.70381745]
[1766270477855,4.37028962,2975.8,2975.2,5.70381745]
[1766270478954,3.361,2975.8,2975.2,5.70381745]
[1766270479149,4.36383656,2975.8,2975.2,5.70381745]
[1766270480649,3.361,2975.8,2975.2,5.70381745]
[1766270480850,4.3627782,2975.8,2975.2,5.70381745]
[1766270482559,3.361,2975.8,2975.2,5.70381745]
[1766270483560,4.35905749,2975.8,2975.2,5.70381745]
[1766270483860,4.34629851,2975.8,2975.2,5.70381745]
[1766270484263,4.31315996,2975.8,2975.2,5.70381745]
[1766270484860,3.361,2975.8,2975.2,5.70381745]
[1766270485162,0.96988354,2975.8,2975.2,5.70381745]
[1766270485364,3.361,2976.1,2975.2,5.70381745]
[1766270486660,4.32184788,2976.1,2975.2,5.70381745]
[1766270486861,3.361,2976.1,2975.2,5.70381745]
[1766270487361,3.361,2976.1,2975.2,5.70374007]
[1766270488460,4.32184788,2976.1,2975.2,5.70374007]
[1766270488857,3.361,2976.1,2975.2,5.70374007]
[1766270489158,4.33286604,2976.1,2975.2,5.70374007]
[1766270489861,4.30967889,2976.1,2975.2,5.70374007]
[1766270491057,3.361,2976.1,2975.2,5.70374007]
[1766270491263,4.31515631,2976.1,2975.2,5.70374007]
[1766270491863,3.361,2976.1,2975.2,5.70374007]
[1766270492058,4.31515631,2976.1,2975.2,5.70374007]
[1766270493063,4.31803695,2976.1,2975.2,5.70374007]
[1766270494063,4.33337537,2976.1,2975.2,5.70374007]
[1766270495767,4.31282142,2976.1,2975.2,5.70374007]
[1766270497066,3.361,2976.1,2975.2,5.70374007]
[1766270497262,4.32115381,2976.1,2975.2,5.70374007]
[1766270498572,3.361,2976.1,2975.2,5.70374007]
[1766270498769,4.32516406,2976.1,2975.2,5.70374007]
[1766270500189,4.33086332,2976.1,2975.2,5.70374007]
[1766270501371,3.361,2976.1,2975.2,5.70374007]
[1766270501973,4.33654993,2976.1,2975.2,5.70374007]
[1766270503172,3.361,2976.1,2975.2,5.70374007]
[1766270503375,4.32503065,2976.1,2975.5,2.34261493]
[1766270503674,3.361,2976.1,2975.5,2.34261493]
[1766270503972,4.32503065,2976.1,2975.5,2.34261493]
[1766270504566,4.30716867,2976.1,2975.5,2.34261493]
[1766270506178,4.32721877,2976.1,2975.5,2.34261493]
[1766270507073,4.30050136,2976.1,2975.5,2.34261493]
[1766270507976,4.31265244,2976.1,2975.5,2.34261493]
[1766270509075,3.361,2976.1,2975.5,2.34261493]
[1766270509273,4.28346234,2976.1,2975.5,2.34261493]
[1766270509690,4.28346234,2976.1,2975.5,5.70361493]
[1766270510874,4.27790129,2976.1,2975.5,5.70361493]
[1766270512176,4.30373473,2976.1,2975.5,5.70361493]
[1766270513571,4.28150993,2976.1,2975.5,5.70361493]
[1766270513979,3.361,2976.1,2975.5,5.70361493]
[1766270514177,4.28150993,2976.1,2975.5,5.70361493]
[1766270515179,4.30438246,2976.1,2975.5,5.70361493]
[1766270515482,4.30438246,2976.1,2975.7,2.34261493]
[1766270516483,4.31337475,2976.1,2975.7,2.34261493]
[1766270517083,3.361,2976.1,2975.7,2.34261493]
[1766270517977,4.31337475,2976.1,2975.7,2.34261493]
[1766270518581,4.30892833,2976.1,2975.7,2.34261493]
[1766270518878,3.361,2976.1,2975.7,2.34261493]
[1766270519083,4.31273436,2976.1,2975.7,2.34261493]
[1766270519986,3.361,2976.1,2975.7,2.34261493]
[1766270520185,4.28008013,2976.1,2975.7,2.34261493]
[1766270521289,4.29112031,2976.1,2975.7,2.34261493]
[1766270521889,3.361,2976.1,2975.7,2.34261493]
[1766270523082,4.29112031,2976.1,2975.7,2.34261493]
[1766270524290,3.361,2976.1,2975.7,2.34261493]
[1766270525684,3.361,2976.1,2975.6,2.34243453]
[1766270525890,4.30581314,2976.1,2975.6,2.34243453]
[1766270526089,4.28680886,2976.1,2975.6,2.34243453]
[1766270527190,4.30908561,2976.1,2975.6,2.34243453]
[1766270528595,4.30563147,2976.1,2975.6,2.34243453]
[1766270528993,3.361,2976.1,2975.6,2.34243453]
[1766270529191,4.31095621,2976.1,2975.6,2.34243453]
[1766270530488,4.31095621,2976.1,2975.8,2.34243453]
[1766270530790,0.94046761,2976.5,2975.9,2.34243453]
[1766270531093,4.30046761,2976.6,2975.9,2.34243453]
[1766270531684,0.00504363,2976.5,2975.7,3.46051188]
[1766270532087,0.00504363,2976.5,2975.7,2.34243453]
[1766270532289,0.00504363,2976.5,2975.6,3.45756943]
[1766270533189,0.00504363,2976.5,2975.6,3.4709791]
[1766270533597,0.00504363,2976.5,2975.6,2.34243453]
[1766270533898,0.00504363,2976.5,2975.6,3.4709791]
[1766270534099,0.00504363,2976.5,2974.7,4.363e-05]
[1766270534301,2.34243453,2976.4,2975.2,3.45805142]
[1766270534498,3.36,2976.3,2975.3,3.36]
[1766270534695,2.305,2976.2,2975.3,3.36]
[1766270536595,2.305,2976.2,2975.3,5.70243453]
[1766270539207,2.305,2976.2,2975.3,6.83969168]
[1766270540305,2.305,2976.2,2975.3,5.70243453]
[1766270541012,2.305,2976.2,2975.3,6.82591186]
[1766270541408,2.305,2976.2,2975.3,6.80892131]
[1766270542504,2.305,2976.2,2975.3,6.84546325]
[1766270543713,2.305,2976.2,2975.3,6.85105919]
[1766270544009,2.305,2976.2,2975.3,5.70243453]
[1766270544211,2.305,2976.2,2975.3,3.49105919]
[1766270545113,2.305,2976.2,2975.3,2.34243453]
[1766270545313,2.305,2976.2,2975.3,3.4699054]
[1766270546315,2.305,2976.2,2975.3,3.48240501]
[1766270547715,2.305,2976.2,2975.3,2.34243453]
[1766270548209,2.305,2976.2,2975.5,2.34243453]
[1766270553715,3.361,2976.1,2975.5,2.34243453]
[1766270558118,0.00275105,2976.8,2976.0,4.68486906]
[1766270558321,0.00275105,2976.8,2976.1,3.361]
[1766270558824,0.00275105,2976.8,2976.3,2.34243453]
[1766270559223,0.00779468,2976.8,2976.3,2.34747816]
[1766270562324,0.00779468,2976.8,2976.4,2.34133159]
[1766270565416,0.00779468,2976.8,2976.3,0.00504363]
[1766270568423,3.361,2976.9,2976.3,0.00504363]
[1766270569632,3.36970087,2976.9,2976.3,0.00504363]
[1766270570518,3.36970087,2976.9,2976.5,2.34133684]
[1766270571127,3.36,2977.1,2976.5,2.34133684]
[1766270572131,3.36814452,2977.1,2976.5,2.34133684]
[1766270572824,3.36814452,2977.1,2976.5,3.53455365]
[1766270573635,3.36814452,2977.1,2976.5,2.34133684]
[1766270577629,3.36,2977.2,2976.5,2.34133684]
[1766270578431,0.00504363,2977.1,2976.5,2.34133684]
[1766270578633,3.36340534,2977.2,2976.8,2.34133684]
[1766270578834,3.36340534,2977.2,2976.8,2.34438012]
[1766270579329,0.08,2977.3,2976.8,2.34438012]
[1766270579933,4.37934098,2977.4,2976.8,2.34438012]
[1766270580132,3.36,2977.4,2976.8,2.34438012]
[1766270580334,4.3820929,2977.4,2976.8,2.34438012]
[1766270581237,3.36275192,2977.4,2976.8,2.34438012]
[1766270581434,4.38277605,2977.4,2976.8,2.34438012]
[1766270582638,4.3526767,2977.4,2976.8,2.34438012]
[1766270583730,4.3782022,2977.4,2976.8,2.34438012]
[1766270583926,3.36275192,2977.4,2976.8,2.34438012]
[1766270584931,4.3782022,2977.4,2976.8,2.34438012]
[1766270585532,1.0182022,2977.4,2976.8,2.34438012]
[1766270585737,12.70218022,2977.7,2976.9,0.0008]
[1766270585937,13.7237613,2977.7,2977.0,3.36]
[1766270586438,12.70218022,2977.7,2977.0,3.36]
[1766270586629,12.70597498,2977.7,2977.0,3.36]
[1766270587538,12.70597498,2977.7,2977.1,2.34133684]
[1766270588237,9.78997498,2977.7,2977.1,2.34133684]
[1766270588441,1.2018491,2978.9,2977.6,4.68347368]
[1766270588746,3.359,2979.3,2978.0,2.34638047]
[1766270588939,4.36747717,2979.3,2978.1,3.359]
[1766270589135,0.98674792,2979.2,2978.1,3.359]
[1766270589330,4.37956296,2979.3,2978.1,3.359]
[1766270589536,4.38202352,2979.3,2978.1,3.359]
[1766270591236,4.36572612,2979.3,2978.1,3.359]
[1766270592242,4.34844578,2979.3,2978.1,3.359]
[1766270593341,3.36146056,2979.3,2978.1,3.359]
[1766270593648,4.38541641,2979.3,2978.1,3.359]
[1766270594650,4.36168785,2979.3,2978.1,3.359]
[1766270595351,3.36146056,2979.3,2978.1,3.359]
[1766270595744,4.38604099,2979.3,2978.1,3.359]
[1766270596943,2.34133684,2979.1,2978.0,0.00504363]
[1766270597144,2.34133684,2978.8,2978.1,0.0008]
[1766270597354,2.34133684,2978.5,2977.2,1.19522264]
[1766270597547,3.358,2978.4,2976.8,2.34438012]
[1766270597752,3.358,2978.4,2976.9,0.66]
[1766270598053,0.00504363,2977.9,2977.4,0.00504363]
[1766270627176,4.363e-05,2977.9,2977.4,0.00504363]
[1766270627384,3.359,2978.3,2977.5,2.33956253]
[1766270627572,4.3480427,2978.3,2977.7,2.33956253]
[1766270627777,3.359,2978.5,2977.9,2.33956253]
[1766270627972,1.2896,2978.5,2977.9,2.33956253]
[1766270628176,6.275,2978.6,2977.9,2.33956253]
[1766270628872,6.275,2978.6,2977.7,5.69856253]
[1766270630778,6.275,2978.6,2977.9,2.33956253]
[1766270630982,6.275,2978.6,2978.0,3.359]
[1766270635483,3.359,2978.6,2978.0,3.359]
[1766270639094,1.0240148,2978.7,2978.0,3.359]
[1766270639793,2.03156887,2978.7,2978.0,5.69798125]
[1766270640392,2.03260785,2978.7,2978.0,5.69798125]
[1766270640588,2.03260785,2978.7,2978.0,2.33898125]
[1766270640790,2.03260785,2978.7,2978.1,3.358]
[1766270641094,2.02338783,2978.7,2978.1,3.358]
[1766270641292,1.0240148,2978.7,2978.1,3.358]
[1766270641497,2.02338783,2978.7,2977.8,2.33898125]
[1766270641692,2.02338783,2978.7,2977.9,3.358]
[1766270641888,1.0240148,2978.7,2977.9,3.358]
[1766270642289,1.0240148,2978.7,2977.8,2.33898125]
[1766270642490,1.0240148,2978.7,2977.9,3.358]
[1766270643000,2.03763897,2978.7,2977.9,3.358]
[1766270643293,2.03763897,2978.7,2977.8,2.33898125]
[1766270643485,2.02296253,2978.7,2977.9,3.358]
[1766270643791,3.358,2978.6,2977.8,3.358]
[1766270648397,5.69698125,2978.6,2977.5,2.33898125]
[1766270648601,5.69698125,2978.6,2977.7,3.358]
[1766270649302,5.69698125,2978.6,2977.5,2.33898125]
[1766270649303,5.69698125,2978.6,2977.6,3.358]
[1766270650101,3.358,2978.6,2977.6,3.358]
[1766270650302,3.358,2978.6,2977.4,0.00504363]
[1766270650695,6.68303533,2978.6,2977.4,0.00504363]
[1766270651002,5.69698125,2978.6,2977.4,0.00504363]
[1766270651900,2.33898125,2978.4,2977.4,0.00504363]
[1766270652100,14.67,2978.3,2977.4,0.00504363]
[1766270652301,2.33898125,2978.2,2975.5,4.23067053]
[1766270652490,3.3252416,2978.2,2976.9,5.69698125]
[1766270653404,0.00504363,2977.8,2977.3,0.00504363]
[1766270653592,3.358,2977.7,2977.3,0.00504363]
[1766270672228,3.358,2977.7,2977.3,4.363e-05]
[1766270731981,3.358,2977.7,2977.1,1.75254363]
[1766270732187,3.358,2977.7,2977.1,1.1473]
[1766270732386,3.358,2977.7,2977.1,3.359]
[1766270732989,3.358,2977.7,2977.1,3.36404363]
[1766270749298,3.358,2977.7,2977.1,0.00504363]
[1766270749493,3.358,2977.7,2977.1,3.36404363]
[1766270749693,3.358,2977.7,2977.1,0.00504363]
[1766270749994,3.358,2977.7,2977.1,3.36404363]
[1766270751400,3.358,2977.7,2977.1,5.70400806]
[1766270762010,2.916,2977.9,2977.3,2.33996443]
[1766270762208,3.90901766,2977.9,2977.3,2.33996443]
[1766270763012,3.91406129,2977.9,2977.3,2.33996443]
[1766270763212,0.99806129,2977.9,2977.4,3.359]
[1766270763512,0.00504363,2977.9,2977.4,3.359]
[1766270771908,0.00504363,2977.9,2977.1,0.00504363]
[1766270772108,0.00504363,2977.9,2977.1,3.36404363]
[1766270775015,0.00504363,2977.9,2977.2,2.33996443]
[1766270776916,0.00504363,2977.9,2977.5,2.33996443]
[1766270777104,3.359,2978.6,2977.8,2.33996443]
[1766270777309,9.29784365,2978.6,2978.0,2.33996443]
[1766270779807,9.29784365,2978.6,2978.1,2.33996443]
[1766270780012,3.359,2978.6,2978.2,2.33996443]
[1766270781214,3.359,2978.6,2978.1,5.69896443]
[1766270783415,5.932,2979.0,2978.2,2.33996443]
[1766270783813,5.932,2979.0,2978.3,2.33996443]
[1766270784213,5.932,2979.0,2978.3,2.3382982]
[1766270784816,5.932,2979.0,2978.1,3.359]
[1766270785016,5.932,2979.0,2978.3,2.3382982]
[1766270791921,5.932,2979.0,2978.5,2.3382982]
[1766270795044,5.932,2979.0,2978.4,3.358]
[1766270796128,5.932,2979.0,2978.3,1.13325159]
[1766270796332,5.932,2979.0,2978.3,3.358]
[1766270796532,5.932,2979.0,2978.3,4.46750379]
[1766270796832,5.932,2979.0,2978.3,3.358]
[1766270798035,5.932,2979.0,2978.3,4.46750379]
[1766270798633,5.932,2979.0,2978.3,4.56313178]
[1766270798831,5.932,2979.0,2978.4,2.3382982]
[1766270811545,5.932,2979.0,2978.3,4.54166427]
[1766270826456,6.9086261,2979.0,2978.3,4.54166427]
[1766270827154,5.932,2979.0,2978.3,4.54166427]
[1766270827553,0.98336129,2978.9,2978.1,1.5876]
[1766270827757,0.98336129,2978.9,2977.8,1.2336211]
[1766270827963,0.98336129,2978.9,2977.9,3.358]
[1766270828155,0.98336129,2978.9,2977.7,2.33813071]
[1766270828353,0.98336129,2978.9,2977.8,3.358]
[1766270830460,0.98336129,2978.9,2977.7,2.33813071]
[1766270830758,0.98336129,2978.9,2977.8,3.358]
[1766270831557,0.98252709,2978.9,2977.8,3.358]
[1766270835266,3.3206578,2978.9,2977.3,2.33813071]
[1766270835474,3.3206578,2978.9,2977.4,5.362]
[1766270836973,3.3206578,2978.9,2977.4,6.63089748]
[1766270837668,3.3206578,2978.9,2977.4,5.362]
[1766270838976,3.3206578,2978.9,2977.4,6.58677575]
[1766270840278,3.3206578,2978.9,2977.4,5.362]
[1766270840474,4.35009539,2978.9,2977.4,5.362]
[1766270840674,0.98252709,2978.8,2977.4,5.362]
[1766270840966,3.358,2978.7,2977.4,5.362]
[1766270841168,2.915,2978.6,2977.4,5.362]
[1766270841978,2.915,2978.6,2977.5,3.358]
[1766270846372,3.94401781,2978.6,2977.4,1.26020269]
[1766270846577,9.38039632,2978.5,2977.4,4.61820269]
[1766270846778,4.34233923,2978.4,2977.4,4.61820269]
[1766270846977,4.34233923,2978.4,2977.4,1.26020269]
[1766270847271,4.34233923,2978.4,2977.3,3.358]
[1766270848082,4.34233923,2978.4,2977.4,1.27150665]
[1766270848885,4.34233923,2978.4,2977.3,3.358]
[1766270849084,4.34233923,2978.4,2977.3,4.59843964]
[1766270849584,4.34233923,2978.4,2977.3,3.358]
[1766270850486,4.34233923,2978.4,2977.3,4.59843964]
[1766270850884,3.358,2978.4,2977.3,4.59843964]
[1766270851087,4.34176063,2978.4,2977.3,4.62153012]
[1766270851684,4.34176063,2978.4,2977.3,3.358]
[1766270851887,4.34176063,2978.4,2977.3,4.59747423]
[1766270852277,4.34176063,2978.4,2977.3,3.358]
[1766270852481,4.34176063,2978.4,2977.3,4.59747423]
[1766270853990,4.34176063,2978.4,2977.3,3.358]
[1766270854190,4.34176063,2978.4,2977.3,4.6336845]
[1766270855193,4.34176063,2978.4,2977.3,3.358]
[1766270856797,5.38424599,2978.4,2977.3,3.358]
[1766270856993,0.98376063,2978.3,2976.9,2.3401333]
[1766270857193,2.916,2978.2,2977.2,3.358]
[1766270857395,3.358,2978.1,2977.2,3.358]
[1766270863398,3.358,2978.1,2977.0,1.27063357]
[1766270863600,3.358,2978.1,2977.2,3.358]
[1766270869399,4.34203197,2978.1,2977.2,3.358]
[1766270869598,3.358,2978.1,2977.2,3.358]
[1766270870501,4.34213105,2978.1,2977.2,3.358]
[1766270871294,3.358,2978.1,2977.2,3.358]
[1766270871597,4.34226724,2978.1,2977.2,3.358]
[1766270885812,3.358,2978.1,2977.2,3.358]
[1766270886015,4.34430126,2978.1,2977.2,3.358]
[1766270906522,4.34430126,2978.1,2977.3,3.359]
[1766270910424,0.98531677,2978.0,2977.3,3.359]
[1766270910626,2.916,2977.9,2977.3,3.359]
[1766270914830,2.916,2977.9,2977.1,3.59693889]
[1766270915025,2.916,2977.9,2977.2,3.359]
[1766270943560,3.358,2978.1,2977.2,3.359]
[1766270987511,0.98590909,2978.2,2977.2,3.359]
[1766270987703,6.274,2978.2,2977.2,3.359]
[1766270987904,0.98590909,2978.1,2977.2,3.359]
[1766270995419,0.98590909,2978.1,2977.3,2.33958498]
[1766270997117,0.98590909,2978.1,2977.4,3.359]
[1766271024936,0.98590909,2978.1,2977.1,1.30953223]
[1766271025139,0.98590909,2978.1,2977.2,2.33958195]
[1766271025330,0.98590909,2978.1,2977.3,3.359]
[1766271025832,0.98590909,2978.1,2977.2,2.33958195]
[1766271026836,0.98590909,2978.1,2977.3,3.359]
[1766271027239,0.98590909,2978.1,2977.2,2.33958195]
[1766271027738,0.98590909,2978.1,2977.3,3.359]
[1766271028237,0.98590909,2978.1,2977.2,2.33958195]
[1766271028431,0.98590909,2978.1,2977.3,3.359]
[1766271028631,0.98590909,2978.1,2977.2,2.33958195]
[1766271028836,0.98590909,2978.1,2977.3,3.359]
[1766271040143,3.359,2978.0,2977.3,3.359]
[1766271049853,3.359,2978.0,2977.2,2.33977839]
[1766271050047,3.359,2978.0,2977.1,4.67766781]
[1766271050961,4.45663316,2978.0,2977.1,3.36404363]
[1766271051259,4.45663316,2978.0,2977.1,0.00504363]
[1766271051260,0.98590909,2977.9,2977.1,0.00504363]